bitfinex-derivatives/quotes_ETHF0:USTF0_20260113
["timestamp","ask_amount","ask_price","bid_price","bid_amount"]
[1768282153365,1.08122773,3143.3,3142.3,0.00297598]
[1768282153551,1.08122773,3143.3,3142.4,1.08122773]
[1768282154054,1.08122773,3143.5,3142.6,1.08122773]
[1768282155159,1.08122773,3143.3,3142.3,1.08420371]
[1768282155363,4.51696688,3143.3,3142.3,0.00297598]
[1768282155661,1.08122773,3142.7,3141.9,1.08122773]
[1768282155866,1.419,3142.8,3141.9,1.08122773]
[1768282156063,1.419,3142.8,3141.6,4.58359039]
[1768282156270,1.419,3142.8,3142.0,1.08122773]
[1768282156470,1.419,3142.8,3142.0,1.08364729]
[1768282156969,3.43573915,3143.3,3142.0,1.08364729]
[1768282157166,1.08122773,3142.9,3142.0,1.08364729]
[1768282157763,1.08122773,3143.4,3142.0,3.50478222]
[1768282157962,1.419,3142.9,3142.2,1.08122773]
[1768282158168,1.419,3142.9,3142.0,3.50478222]
[1768282158370,1.419,3142.9,3142.1,1.08122773]
[1768282162476,1.419,3142.9,3142.3,1.08122773]
[1768282162670,0.15923,3143.8,3142.7,1.08122773]
[1768282162875,1.08122773,3143.5,3142.7,1.08122773]
[1768282163173,1.419,3143.7,3142.5,1.08122773]
[1768282163473,1.08122773,3143.5,3142.5,1.08122773]
[1768282163874,1.419,3143.4,3142.7,1.08122773]
[1768282164575,2.50022773,3143.4,3142.7,1.08122773]
[1768282165077,2.50022773,3143.4,3142.5,1.08122773]
[1768282165276,1.419,3143.4,3142.5,1.08122773]
[1768282166379,0.0047735,3143.9,3142.5,1.08122773]
[1768282166678,2.50022773,3143.5,3142.5,1.08122773]
[1768282168380,1.08122773,3143.3,3142.5,1.08122773]
[1768282168577,1.08122773,3143.3,3142.3,4.58359039]
[1768282168778,1.08122773,3143.3,3142.3,1.08122773]
[1768282169371,1.08122773,3143.3,3142.0,0.00241956]
[1768282169679,1.08122773,3143.3,3142.3,1.08122773]
[1768282170172,1.08122773,3143.3,3142.0,0.00241956]
[1768282170675,1.419,3143.3,3142.7,1.08122773]
[1768282170978,1.08122773,3143.1,3142.2,1.08122773]
[1768282171166,2.50022773,3143.3,3142.2,1.08122773]
[1768282171571,2.50022773,3143.3,3142.4,1.08122773]
[1768282171774,1.08122773,3143.1,3142.2,1.08122773]
[1768282171982,1.08122773,3143.0,3142.0,1.08364729]
[1768282172182,1.08122773,3142.8,3142.0,1.08364729]
[1768282172477,1.08122773,3143.0,3142.0,1.08364729]
[1768282175776,1.419,3142.9,3142.2,1.08122773]
[1768282176280,1.08122773,3143.0,3142.2,1.08122773]
[1768282176480,2.50022773,3143.0,3142.2,1.08122773]
[1768282177281,2.50022773,3143.0,3142.0,0.00241956]
[1768282177478,2.50022773,3143.0,3142.1,1.08122773]
[1768282178078,1.419,3143.0,3142.1,1.08122773]
[1768282181785,1.08122773,3142.9,3142.0,0.00241956]
[1768282181986,1.08122773,3142.9,3142.0,1.08364729]
[1768282182186,1.419,3143.0,3142.2,1.08122773]
[1768282183789,1.08122773,3142.9,3142.0,0.00241956]
[1768282183980,1.419,3142.9,3142.3,1.08122773]
[1768282184785,1.419,3142.9,3142.1,1.08122773]
[1768282185984,2.50022773,3142.9,3142.1,1.08122773]
[1768282186389,2.50022773,3142.9,3142.0,0.00241956]
[1768282186689,1.08122773,3142.7,3142.0,0.00241956]
[1768282187690,1.08122773,3142.5,3142.0,0.00241956]
[1768282187892,1.08122773,3142.5,3141.5,4.67371485]
[1768282188292,1.08122773,3142.7,3141.7,1.08122773]
[1768282188687,1.08122773,3142.7,3141.9,1.08122773]
[1768282188897,1.08122773,3142.7,3141.9,1.08535706]
[1768282189098,2.50022773,3142.9,3141.9,1.08535706]
[1768282190593,1.08122773,3142.7,3141.9,0.00412933]
[1768282191702,1.08122773,3142.3,3141.3,1.08122773]
[1768282191997,1.08122773,3142.3,3141.5,1.08122773]
[1768282192196,1.08122773,3142.5,3141.5,1.08122773]
[1768282192689,1.08505978,3142.5,3141.5,1.08405437]
[1768282192889,1.08122773,3142.1,3141.5,0.00282664]
[1768282193299,1.08122773,3142.1,3141.1,1.08122773]
[1768282193499,2.50022773,3142.2,3141.3,1.08122773]
[1768282193795,1.419,3142.2,3141.5,1.08122773]
[1768282194190,1.419,3142.2,3141.5,1.08457079]
[1768282195595,0.0047735,3142.3,3141.7,1.08122773]
[1768282195796,0.0047735,3142.3,3141.9,1.08122773]
[1768282196192,0.0047735,3142.3,3141.7,1.08122773]
[1768282196598,0.0047735,3142.3,3142.0,1.08122773]
[1768282196797,0.0047735,3142.3,3141.7,1.08122773]
[1768282197602,0.0047735,3142.3,3141.5,3.59583018]
[1768282197795,0.0047735,3142.3,3141.8,1.08122773]
[1768282198100,0.0047735,3142.3,3141.5,3.59583018]
[1768282198296,0.0047735,3142.3,3141.7,1.08122773]
[1768282198498,1.08600123,3142.3,3141.5,0.00334306]
[1768282198998,0.0047735,3142.3,3141.8,1.08122773]
[1768282199202,0.0047735,3142.3,3141.5,0.00334306]
[1768282199403,0.0047735,3142.3,3141.7,1.08122773]
[1768282199603,0.0047735,3142.3,3141.5,0.00334306]
[1768282199604,0.0047735,3142.3,3141.5,1.08457079]
[1768282199802,0.0047735,3142.3,3141.5,0.00334306]
[1768282200103,1.08122773,3142.2,3141.5,0.00334306]
[1768282200998,0.0047735,3142.3,3141.5,0.00334306]
[1768282201405,0.0047735,3142.3,3142.1,1.08122773]
[1768282201702,0.00383205,3142.5,3142.1,1.08122773]
[1768282201898,3.41458093,3143.5,3142.3,1.08122773]
[1768282202098,2.25029469,3143.4,3142.3,1.08122773]
[1768282202300,3.41458093,3144.0,3142.9,1.08122773]
[1768282202503,0.83219137,3143.9,3142.8,1.08122773]
[1768282202701,3.41458093,3144.0,3143.1,1.08122773]
[1768282202998,0.00369721,3144.0,3143.5,1.08122773]
[1768282203202,0.00210421,3144.0,3143.5,1.08122773]
[1768282203506,0.00210421,3144.0,3143.4,0.0047735]
[1768282204298,0.00210421,3144.0,3143.4,1.08600123]
[1768282205404,0.00210421,3144.0,3143.6,1.08122773]
[1768282205599,3.41458093,3144.6,3143.6,1.08122773]
[1768282205799,1.08122773,3144.9,3144.0,1.08122773]
[1768282206003,2.24928457,3144.8,3143.8,1.08122773]
[1768282206196,1.08122773,3144.6,3143.6,1.08122773]
[1768282206399,1.08122773,3144.2,3143.4,1.08600123]
[1768282206599,0.00229344,3144.2,3143.4,1.08939484]
[1768282208097,0.00229344,3144.2,3143.4,0.00816711]
[1768282208297,0.00229344,3144.2,3143.7,1.08122773]
[1768282208497,1.419,3144.4,3143.7,1.08122773]
[1768282208697,1.419,3144.5,3143.7,1.08122773]
[1768282208901,2.50022773,3144.5,3143.4,1.08939484]
[1768282209208,1.419,3144.5,3143.4,1.08939484]
[1768282209405,1.4229712,3144.5,3143.4,0.00816711]
[1768282212011,2.50400504,3144.5,3143.4,0.00816711]
[1768282212210,1.4229712,3144.5,3143.4,1.08920095]
[1768282212610,1.4229712,3144.5,3143.4,0.00816711]
[1768282215414,4.76863075,3144.5,3143.4,0.00816711]
[1768282215602,1.08103384,3144.0,3143.4,0.00816711]
[1768282215806,1.08103384,3144.0,3142.5,1.08103384]
[1768282216299,1.08103384,3144.0,3142.8,1.08103384]
[1768282216501,4.42669339,3144.3,3142.8,1.08103384]
[1768282216705,4.42669339,3144.3,3142.8,1.08499577]
[1768282217208,3.34565955,3144.2,3142.8,0.00396193]
[1768282217408,3.34565955,3144.2,3142.8,1.08499577]
[1768282219114,3.34565955,3144.2,3142.8,0.00396193]
[1768282219910,1.08103384,3143.7,3142.8,0.00396193]
[1768282220119,2.49903384,3143.7,3142.8,0.00396193]
[1768282220314,1.418,3143.7,3142.8,0.00396193]
[1768282220905,1.418,3143.7,3142.3,1.08103384]
[1768282222013,1.418,3143.7,3142.3,1.08405655]
[1768282222315,1.418,3143.7,3142.3,0.00302271]
[1768282222624,4.76365955,3143.7,3142.3,1.08405655]
[1768282224606,4.76365955,3143.7,3142.3,0.00302271]
[1768282224812,4.76365955,3143.7,3142.3,1.08405655]
[1768282225019,1.08103384,3143.5,3142.3,0.00302271]
[1768282226114,4.42669339,3143.5,3142.3,0.00302271]
[1768282226921,3.34565955,3143.4,3142.3,0.00302271]
[1768282227322,4.42669339,3143.2,3142.3,0.00302271]
[1768282227524,3.34565955,3143.1,3142.3,0.00302271]
[1768282227724,3.34565955,3143.1,3141.6,1.08103384]
[1768282228520,1.08103384,3143.0,3141.3,3.46777551]
[1768282228721,1.08103384,3143.0,3141.6,0.00347406]
[1768282229726,0.0047735,3142.6,3141.6,0.00347406]
[1768282230321,0.0047735,3142.6,3142.2,1.08103384]
[1768282230526,0.0047735,3142.6,3141.9,1.08103384]
[1768282230727,0.0047735,3142.6,3141.6,4.55228341]
[1768282231624,0.0047735,3142.6,3141.7,4.54880935]
[1768282232531,0.15923,3143.8,3142.3,1.08103384]
[1768282232828,0.15923,3143.8,3141.6,1.0845079]
[1768282232829,3.185,3144.0,3142.6,3.46777551]
[1768282233033,4.602,3144.0,3142.6,3.46777551]
[1768282233835,4.42669339,3144.3,3142.8,1.08103384]
[1768282234041,1.417,3144.0,3142.8,1.08103384]
[1768282234537,1.417,3144.0,3142.6,4.54880935]
[1768282234929,2.49803384,3144.0,3142.6,3.46777551]
[1768282235738,2.49803384,3144.0,3142.6,3.45217551]
[1768282237331,6.03015618,3144.0,3142.4,1.08103384]
[1768282239038,3.53212234,3143.6,3141.8,3.51773334]
[1768282239236,1.08103384,3142.8,3141.8,3.51773334]
[1768282239436,1.08103384,3143.1,3141.8,3.51773334]
[1768282239637,1.422,3143.2,3141.8,4.59876718]
[1768282241937,3.53212234,3143.9,3142.1,1.08103384]
[1768282242245,0.83031711,3143.8,3142.7,1.08103384]
[1768282242446,2.25231711,3143.7,3142.5,3.51295984]
[1768282242737,0.15922,3144.0,3142.5,3.51295984]
[1768282242941,2.25241706,3143.9,3142.5,4.59399368]
[1768282243142,0.83041706,3143.8,3142.8,1.08103384]
[1768282243334,1.422,3143.8,3142.8,1.08103384]
[1768282243536,1.422,3143.8,3142.5,4.59399368]
[1768282244042,1.422,3143.8,3142.5,3.51295984]
[1768282244238,1.08103384,3144.0,3142.5,4.59399368]
[1768282244435,2.25280895,3143.9,3142.5,3.51295984]
[1768282244636,0.83082283,3143.8,3142.5,3.51295984]
[1768282244836,1.08103384,3143.7,3142.5,3.51295984]
[1768282245038,1.422,3143.9,3142.5,3.51295984]
[1768282245343,0.83083328,3143.8,3142.5,3.51295984]
[1768282245542,1.422,3143.9,3142.5,3.51295984]
[1768282245741,0.83109512,3143.8,3142.5,3.51295984]
[1768282245943,1.08103384,3142.7,3141.8,0.0047735]
[1768282246139,1.08103384,3143.4,3141.8,0.0047735]
[1768282246335,0.83127606,3143.3,3141.8,4.59876718]
[1768282246537,1.08103384,3143.4,3141.8,4.59876718]
[1768282246740,0.83128109,3143.3,3141.8,4.59876718]
[1768282246937,1.08103384,3143.4,3141.8,4.59876718]
[1768282247133,0.83129393,3143.3,3142.2,3.51295984]
[1768282247444,1.422,3143.4,3142.4,1.08103384]
[1768282247643,1.422,3143.5,3142.2,4.59399368]
[1768282248144,1.422,3143.5,3142.2,3.51295984]
[1768282249336,1.422,3143.5,3142.2,4.59399368]
[1768282249942,1.422,3143.5,3142.2,3.51295984]
[1768282251545,1.422,3143.5,3141.8,3.51773334]
[1768282251946,4.95412234,3143.5,3142.0,1.08103384]
[1768282252946,6.03515618,3143.5,3142.0,4.59399368]
[1768282253146,4.61315618,3143.5,3142.0,4.59399368]
[1768282253339,1.422,3143.4,3142.1,3.51295984]
[1768282253535,1.422,3143.3,3142.3,4.59399368]
[1768282254449,1.422,3143.3,3142.3,3.51295984]
[1768282255342,1.422,3143.3,3142.1,1.08103384]
[1768282256145,1.422,3143.3,3142.2,3.51295984]
[1768282257248,1.08103384,3143.7,3142.2,3.51295984]
[1768282257448,2.25601538,3143.6,3142.2,3.51295984]
[1768282257645,0.83401538,3143.5,3142.2,3.51295984]
[1768282257843,0.83401538,3143.4,3142.2,3.51295984]
[1768282258047,1.422,3143.6,3142.2,3.51295984]
[1768282258247,0.83401553,3143.5,3142.2,3.51295984]
[1768282258447,0.83401553,3143.4,3142.2,3.51295984]
[1768282258641,1.422,3143.6,3142.2,3.51295984]
[1768282258842,0.83404628,3143.5,3142.2,3.51295984]
[1768282259042,0.83404628,3143.4,3142.2,3.51295984]
[1768282259242,1.422,3143.6,3142.2,3.51295984]
[1768282259443,0.83410269,3143.5,3142.2,3.51295984]
[1768282259640,3.185,3144.0,3142.7,4.59399368]
[1768282259852,0.83404028,3143.9,3142.7,4.59399368]
[1768282260147,2.25504028,3143.8,3142.7,4.59399368]
[1768282260350,1.421,3143.8,3142.7,4.59399368]
[1768282261950,0.0039712,3144.5,3143.1,3.51295984]
[1768282262144,0.83414092,3144.4,3143.4,1.08103384]
[1768282262350,1.422,3144.4,3143.2,3.51295984]
[1768282262858,2.50303384,3144.4,3143.4,0.0047735]
[1768282266857,1.08103384,3144.1,3143.4,0.0047735]
[1768282267165,1.08103384,3144.2,3143.4,0.0047735]
[1768282268063,1.08103384,3143.9,3142.3,3.46257873]
[1768282268254,1.08103384,3143.3,3141.9,3.46257873]
[1768282268451,1.423,3143.5,3142.0,1.08103384]
[1768282268654,1.423,3143.5,3142.3,1.08103384]
[1768282269963,1.423,3143.5,3142.3,1.02333384]
[1768282270862,1.423,3143.5,3142.0,3.46257873]
[1768282271259,1.423,3143.5,3142.1,1.08103384]
[1768282271463,1.08180544,3143.3,3142.3,1.08180544]
[1768282272365,1.08180544,3143.1,3142.2,1.08180544]
[1768282272566,1.423,3143.5,3142.2,1.08180544]
[1768282272768,1.08180544,3143.3,3142.2,1.08180544]
[1768282274759,1.08180544,3143.3,3142.0,3.46257873]
[1768282274760,1.08180544,3143.1,3142.0,3.46257873]
[1768282275058,1.08180544,3143.1,3142.1,1.08180544]
[1768282275461,1.08180544,3143.1,3142.0,3.46257873]
[1768282275667,1.08180544,3142.9,3141.9,1.08180544]
[1768282275967,5.05509387,3143.5,3142.3,1.08180544]
[1768282276164,1.08180544,3143.4,3142.3,1.08180544]
[1768282276767,3.63209387,3144.0,3142.7,1.08180544]
[1768282276957,1.08180544,3143.5,3142.7,1.08180544]
[1768282277160,1.08180544,3143.1,3142.2,1.08180544]
[1768282277566,1.08180544,3143.1,3141.7,3.41021892]
[1768282277764,1.08180544,3143.3,3141.7,3.41021892]
[1768282277963,1.08180544,3143.1,3142.1,1.08180544]
[1768282278566,1.08180544,3143.1,3141.7,3.41021892]
[1768282278769,1.08180544,3143.0,3142.0,1.08180544]
[1768282279570,1.08180544,3143.0,3141.7,3.41021892]
[1768282279970,1.08180544,3142.8,3141.8,1.08180544]
[1768282280364,1.08180544,3142.8,3142.0,1.08180544]
[1768282280773,1.08180544,3142.3,3141.6,0.00347406]
[1768282280974,0.0030568,3142.3,3141.2,3.41021892]
[1768282281176,1.08180544,3142.0,3141.2,3.41021892]
[1768282281374,0.0030568,3142.3,3141.2,3.41021892]
[1768282281668,1.08180544,3141.9,3140.8,3.41021892]
[1768282281873,1.08180544,3141.9,3141.0,1.08180544]
[1768282282569,1.08180544,3141.9,3140.8,3.41397858]
[1768282282570,1.08180544,3141.7,3140.8,3.41397858]
[1768282284483,2.16361088,3141.0,3140.0,3.41021892]
[1768282284687,1.08180544,3140.8,3140.0,3.41021892]
[1768282284884,0.0030568,3142.3,3140.6,4.49202436]
[1768282285192,1.08180544,3142.0,3141.0,1.08180544]
[1768282285690,1.08180544,3142.0,3141.0,1.08509574]
[1768282285879,0.0047735,3141.8,3141.0,1.08509574]
[1768282286082,1.08486224,3142.3,3141.3,1.08180544]
[1768282287292,1.08180544,3142.1,3141.2,0.0047735]
[1768282287494,1.08180544,3141.9,3141.2,0.0047735]
[1768282288086,1.08180544,3142.1,3141.2,0.0047735]
[1768282288893,1.08180544,3141.7,3141.2,0.0047735]
[1768282289687,1.08180544,3141.4,3141.0,0.0032903]
[1768282289890,1.08180544,3141.7,3141.0,0.0032903]
[1768282291691,1.08180544,3141.7,3139.9,1.367]
[1768282291692,3.63209387,3141.4,3139.2,3.41021892]
[1768282291893,0.15935,3141.5,3138.6,2.87898384]
[1768282291894,1.08180544,3139.9,3138.9,1.08180544]
[1768282292101,1.08180544,3139.7,3138.7,3.41021892]
[1768282292294,1.08180544,3139.9,3138.9,1.08180544]
[1768282292599,4.71389931,3140.4,3139.1,1.08180544]
[1768282292801,0.00367631,3139.9,3138.9,1.08180544]
[1768282292991,0.00367631,3139.9,3139.1,1.08180544]
[1768282293187,0.00367631,3139.9,3139.3,1.08180544]
[1768282293393,0.15938,3140.8,3139.7,1.08180544]
[1768282293593,1.08180544,3140.4,3139.3,1.08180544]
[1768282293793,1.08180544,3140.2,3139.3,1.08180544]
[1768282293989,1.08180544,3140.6,3139.6,1.08180544]
[1768282294198,1.08180544,3140.5,3139.6,1.08180544]
[1768282294394,3.63209387,3140.8,3139.6,1.08180544]
[1768282294701,0.0047735,3140.4,3139.6,1.08180544]
[1768282295402,0.0047735,3140.4,3139.1,3.41021892]
[1768282296497,0.0047735,3140.4,3139.2,3.40196577]
[1768282301502,3.36474444,3140.4,3138.7,0.00364178]
[1768282301702,1.46313626,3139.7,3138.7,0.00364178]
[1768282301900,1.423,3140.0,3138.7,0.00364178]
[1768282302098,1.46313626,3139.9,3138.7,0.00364178]
[1768282302608,4.8231072,3139.9,3138.7,0.00364178]
[1768282302802,3.35997094,3139.9,3138.7,0.00364178]
[1768282303006,4.8231072,3139.9,3138.7,0.00364178]
[1768282303203,4.8231072,3139.6,3138.7,0.00364178]
[1768282303395,1.46313626,3139.3,3138.0,3.40196577]
[1768282303707,1.46313626,3139.3,3137.6,3.40196577]
[1768282304409,1.46313626,3139.0,3137.6,3.4051591]
[1768282304607,0.15944,3139.8,3137.6,3.4051591]
[1768282304608,3.51941094,3139.8,3137.8,4.86510203]
[1768282304808,3.35997094,3139.8,3138.2,3.40196577]
[1768282305009,1.422,3139.7,3138.2,3.40196577]
[1768282305210,6.2451072,3139.7,3138.2,3.40196577]
[1768282305407,6.2451072,3139.7,3137.7,3.40196577]
[1768282305607,3.35997094,3139.6,3137.7,3.40196577]
[1768282306104,1.46313626,3139.4,3137.7,3.40196577]
[1768282307207,3.35997094,3139.6,3137.7,3.40196577]
[1768282308011,1.423,3139.7,3138.2,3.40196577]
[1768282310117,2.88613626,3139.7,3138.2,3.40196577]
[1768282311210,2.88613626,3139.7,3137.7,1.46313626]
[1768282311211,3.35997094,3139.6,3137.7,4.86510203]
[1768282311516,1.46313626,3139.1,3137.7,3.40196577]
[1768282311716,1.46313626,3139.4,3137.7,3.40196577]
[1768282311912,5.8231072,3139.6,3137.7,3.40196577]
[1768282312117,1.423,3139.3,3137.7,3.40196577]
[1768282313318,2.88613626,3139.3,3137.7,3.40196577]
[1768282313515,6.2461072,3139.3,3137.7,3.40196577]
[1768282315622,1.46313626,3139.0,3137.7,3.40196577]
[1768282315818,6.2461072,3139.3,3137.7,3.40196577]
[1768282316022,3.35997094,3139.2,3137.7,3.40196577]
[1768282316522,1.423,3139.1,3137.7,3.40196577]
[1768282316910,4.35997094,3139.6,3137.7,3.40196577]
[1768282317120,1.423,3139.5,3137.7,3.40196577]
[1768282317316,1.46313626,3139.4,3137.7,3.40196577]
[1768282318422,1.46313626,3138.8,3137.6,0.00319333]
[1768282318815,1.46313626,3139.1,3137.6,0.00319333]
[1768282319623,4.8231072,3139.1,3137.6,0.00319333]
[1768282320223,0.0047735,3138.7,3137.6,0.00319333]
[1768282321618,0.0047735,3138.7,3137.6,3.4051591]
[1768282321820,0.0047735,3138.7,3137.6,0.00319333]
[1768282323224,4.8231072,3138.4,3137.6,0.00319333]
[1768282323424,1.08555215,3137.8,3137.6,0.00319333]
[1768282323620,1.08555215,3137.9,3136.9,1.08555215]
[1768282324414,1.08555215,3137.7,3136.6,3.56155577]
[1768282324613,1.08555215,3137.9,3136.9,1.08555215]
[1768282325014,1.08555215,3137.9,3136.8,1.06591131]
[1768282325221,1.08555215,3137.9,3137.0,1.08555215]
[1768282325428,1.423,3138.3,3136.8,1.06591131]
[1768282325914,4.74149663,3138.3,3136.8,1.06591131]
[1768282326428,4.78386298,3138.1,3136.8,1.06591131]
[1768282326723,3.31849663,3138.0,3136.8,1.06591131]
[1768282327320,4.74149663,3138.0,3136.8,1.06591131]
[1768282327921,0.0047735,3138.7,3137.6,3.3819902]
[1768282328521,0.0047735,3138.7,3137.6,4.84735655]
[1768282328722,3.47792663,3139.8,3137.7,3.3819902]
[1768282328926,1.0037863,3139.1,3137.9,1.46536635]
[1768282329321,1.0037863,3139.1,3137.8,0.00478118]
[1768282329923,1.0037863,3139.1,3138.3,1.46536635]
[1768282330119,1.0037863,3139.1,3138.0,3.3819902]
[1768282330323,1.0037863,3139.1,3138.2,4.84735655]
[1768282330719,1.0037863,3139.1,3138.3,3.3819902]
[1768282330920,1.423,3140.2,3138.5,1.46536635]
[1768282331124,0.83647873,3140.1,3138.5,4.84735655]
[1768282331322,0.83647873,3140.0,3138.5,3.3819902]
[1768282331524,4.74149663,3140.3,3137.8,0.00478118]
[1768282331525,4.15497536,3139.9,3138.0,3.3819902]
[1768282331726,0.83647873,3139.8,3138.2,1.46536635]
[1768282331925,0.83647873,3139.8,3138.2,4.84735655]
[1768282333324,0.83647873,3139.8,3138.2,3.3819902]
[1768282334036,4.28173521,3139.8,3138.2,3.3819902]
[1768282334238,3.44525648,3139.8,3138.2,3.3819902]
[1768282334431,0.83691072,3139.7,3138.2,3.3819902]
[1768282334634,3.44525648,3139.8,3138.2,3.3819902]
[1768282334838,0.83691418,3139.7,3138.2,3.3819902]
[1768282335036,3.44525648,3139.8,3138.2,3.3819902]
[1768282335238,0.83686148,3139.7,3138.2,3.3819902]
[1768282335438,3.44525648,3139.7,3137.8,0.00478118]
[1768282335936,3.44525648,3139.5,3137.8,0.00478118]
[1768282336137,0.8369122,3139.4,3137.8,0.00478118]
[1768282336740,4.28216868,3139.4,3137.8,0.00478118]
[1768282337038,4.28216868,3139.3,3137.8,0.00478118]
[1768282337236,3.44525648,3139.3,3137.8,0.00478118]
[1768282339540,0.83706707,3139.2,3137.8,0.00478118]
[1768282339740,3.44525648,3139.3,3137.8,0.00478118]
[1768282339940,0.83707256,3139.2,3137.8,0.00478118]
[1768282340134,3.44525648,3139.3,3137.8,0.00478118]
[1768282340336,0.837065,3139.2,3137.8,0.00478118]
[1768282340537,3.44525648,3139.0,3137.8,0.00478118]
[1768282340742,3.44525648,3139.0,3136.8,4.25591131]
[1768282340743,3.44525648,3138.8,3136.8,4.25591131]
[1768282341040,3.44525648,3138.6,3136.8,4.25591131]
[1768282341437,1.65899365,3138.5,3136.8,1.06591131]
[1768282341642,3.44525648,3138.4,3136.8,1.06591131]
[1768282342342,3.44525648,3138.2,3136.8,1.06591131]
[1768282343838,4.28220667,3138.1,3136.8,1.06591131]
[1768282344043,3.44525648,3138.1,3136.8,1.06591131]
[1768282345332,3.44525648,3138.6,3136.8,4.39445263]
[1768282345531,3.44525648,3138.6,3136.9,3.32854132]
[1768282345939,3.44525648,3138.6,3136.8,1.06591131]
[1768282346138,0.02702777,3137.8,3136.8,1.06591131]
[1768282347147,0.02702777,3137.3,3136.8,4.39445263]
[1768282347346,0.03038076,3137.3,3136.8,4.39445263]
[1768282347946,0.00478118,3138.1,3136.8,4.39445263]
[1768282349046,0.00705577,3138.1,3136.8,4.39445263]
[1768282349243,0.00705577,3138.1,3136.9,3.32854132]
[1768282354354,1.00705577,3138.1,3136.9,3.32854132]
[1768282355457,1.00705577,3138.1,3137.1,3.39318066]
[1768282356958,1.00705577,3138.1,3136.8,1.06591131]
[1768282356959,3.44759207,3137.6,3136.8,1.06591131]
[1768282357157,3.44759207,3138.0,3136.8,1.06591131]
[1768282359659,1.00705577,3138.1,3136.8,1.06591131]
[1768282361951,1.00705577,3138.1,3136.9,3.39318066]
[1768282363661,3.44759207,3137.7,3136.8,1.06591131]
[1768282364253,1.00705577,3138.1,3136.8,1.06591131]
[1768282364462,1.421,3138.0,3136.8,1.06591131]
[1768282364660,1.00705577,3138.1,3136.8,1.06591131]
[1768282364860,2.42805577,3138.1,3136.8,1.06591131]
[1768282365164,1.00705577,3138.1,3136.8,1.06591131]
[1768282366758,1.00705577,3138.1,3136.8,4.45909197]
[1768282370167,1.00705577,3138.1,3137.0,3.39318066]
[1768282370370,3.44759207,3139.3,3137.4,3.39318066]
[1768282370567,3.44759207,3139.1,3137.1,0.00478118]
[1768282370758,3.44759207,3138.9,3137.1,0.00478118]
[1768282371162,3.44759207,3138.9,3137.1,3.39796184]
[1768282371365,3.45061968,3138.9,3137.1,3.39796184]
[1768282372061,0.00302761,3138.9,3137.1,3.39796184]
[1768282374265,0.00302761,3138.9,3137.4,3.39318066]
[1768282375163,0.00302761,3138.9,3137.8,3.39318066]
[1768282376975,3.44759207,3139.8,3137.8,3.39318066]
[1768282377963,3.44996495,3139.8,3137.8,3.39318066]
[1768282378658,0.00237288,3139.8,3137.8,3.39318066]
[1768282378865,0.00237288,3139.8,3138.2,3.39318066]
[1768282379669,0.00237288,3139.8,3138.7,0.00478118]
[1768282381970,3.44996495,3139.8,3138.7,0.00478118]
[1768282385280,0.00237288,3139.8,3138.7,0.00478118]
[1768282386480,0.00237288,3139.8,3138.8,3.35659899]
[1768282388872,3.4216291,3140.6,3138.8,3.35659899]
[1768282389979,3.42487229,3140.6,3138.8,3.35659899]
[1768282390177,0.00324319,3140.6,3138.8,3.35659899]
[1768282390384,0.00324319,3140.6,3139.5,5.01559264]
[1768282390568,0.00324319,3140.6,3139.5,3.35902464]
[1768282392470,0.00324319,3140.6,3139.5,0.00242565]
[1768282393476,0.00324319,3140.6,3139.5,1.46505413]
[1768282393677,0.00324319,3140.6,3139.8,1.46262848]
[1768282394785,0.00324319,3140.6,3139.5,1.46505413]
[1768282395779,0.00324319,3140.6,3139.5,0.00242565]
[1768282395978,0.00324319,3140.6,3139.5,3.40823389]
[1768282396285,0.00324319,3140.6,3139.7,1.46262848]
[1768282397592,0.00324319,3140.6,3139.5,3.40823389]
[1768282398082,0.00324319,3140.6,3139.5,0.00242565]
[1768282400990,5.0860353,3140.5,3139.5,0.00242565]
[1768282401180,3.62340682,3140.4,3139.5,0.00242565]
[1768282401684,3.62340682,3140.4,3138.7,0.00478118]
[1768282401889,3.62340682,3140.1,3138.7,0.00478118]
[1768282402682,3.62340682,3140.1,3138.7,0.0081326]
[1768282404690,3.62340682,3139.5,3137.7,1.46262848]
[1768282404991,3.62340682,3139.2,3137.5,3.40580824]
[1768282405889,3.62340682,3139.2,3137.6,1.46262848]
[1768282407187,3.62340682,3139.2,3137.5,0.00367252]
[1768282407382,5.0860353,3139.0,3137.5,0.00367252]
[1768282407594,3.62340682,3138.9,3137.5,0.00367252]
[1768282408801,3.62340682,3138.7,3137.5,0.00367252]
[1768282410890,3.62340682,3138.4,3137.5,0.00367252]
[1768282411197,3.62608453,3138.4,3136.8,1.06190119]
[1768282411998,3.62608453,3138.4,3136.8,1.06508291]
[1768282413687,3.62340682,3138.2,3136.8,1.06508291]
[1768282415598,3.62340682,3138.2,3136.8,2.52771139]
[1768282418400,3.62340682,3138.2,3136.8,1.06508291]
[1768282422299,4.77312647,3138.0,3136.8,1.06508291]
[1768282422904,3.31049799,3138.0,3136.8,1.06508291]
[1768282423104,0.00478118,3137.7,3136.8,1.06508291]
[1768282425606,3.31527917,3137.7,3136.8,1.06508291]
[1768282426104,0.00478118,3137.7,3136.8,1.06508291]
[1768282426705,3.31527917,3137.7,3136.8,1.06508291]
[1768282426908,3.31527917,3137.7,3136.8,0.90088185]
[1768282427107,4.77312647,3137.5,3135.6,3.3393232]
[1768282427409,4.77312647,3137.5,3135.7,4.80195168]
[1768282428013,4.77312647,3137.5,3135.7,4.80492465]
[1768282429610,3.31049799,3137.4,3135.7,4.80492465]
[1768282429820,3.31049799,3137.4,3135.7,3.34229617]
[1768282430622,3.31049799,3137.4,3135.0,3.13427148]
[1768282430623,1.46262848,3136.2,3134.7,3.3393232]
[1768282430818,3.31049799,3136.3,3134.7,3.3393232]
[1768282431113,1.46262848,3136.4,3134.7,3.3393232]
[1768282431315,3.31049799,3136.7,3134.9,3.3393232]
[1768282431521,3.31049799,3137.1,3135.2,3.3393232]
[1768282431721,3.31358025,3137.1,3135.3,4.80195168]
[1768282432224,4.77312647,3137.0,3135.3,4.80195168]
[1768282433018,0.00308226,3137.1,3135.6,4.80195168]
[1768282433315,0.00308226,3137.1,3135.9,1.46262848]
[1768282433522,0.00308226,3137.1,3136.2,1.46262848]
[1768282434318,0.00308226,3137.1,3136.0,3.3393232]
[1768282437326,0.00308226,3137.1,3136.2,1.46262848]
[1768282437622,0.00308226,3137.1,3136.2,4.80195168]
[1768282437825,4.72549799,3138.0,3136.5,1.46262848]
[1768282438019,3.31049799,3137.9,3136.0,3.3393232]
[1768282438215,3.31049799,3137.9,3136.1,1.46262848]
[1768282438921,3.31394999,3137.9,3136.2,3.3393232]
[1768282440420,4.77657847,3137.9,3136.2,3.3393232]
[1768282440831,3.31049799,3137.8,3136.2,3.3393232]
[1768282441621,0.003452,3137.9,3136.4,4.80195168]
[1768282441826,0.003452,3137.9,3136.7,1.46262848]
[1768282442123,0.003452,3137.9,3136.5,3.3393232]
[1768282444628,3.53731678,3137.9,3136.2,1.46262848]
[1768282444923,3.53731678,3137.9,3136.2,4.76174486]